bitfinex/quotes_BTCUSD_20250218
["timestamp","ask_amount","ask_price","bid_price","bid_amount"]
[1739875834790,0.704728,95960.0,95959.0,0.0829406]
[1739875835882,0.74179061,95960.0,95959.0,0.0829406]
[1739875836304,0.66130861,95960.0,95959.0,0.0829406]
[1739875836511,0.74639326,95960.0,95959.0,0.0003406]
[1739875836743,0.29588126,95960.0,95959.0,0.0003406]
[1739875836976,4.03325126,95960.0,95959.0,0.0003406]
[1739875837180,3.91762461,95960.0,95959.0,0.0003406]
[1739875837858,3.73869361,95960.0,95959.0,0.0003406]
[1739875838282,3.74269361,95960.0,95959.0,0.0003406]
[1739875838489,3.74514016,95960.0,95959.0,0.0003406]
[1739875838696,3.74114016,95960.0,95959.0,0.0003406]
[1739875838898,3.73814016,95960.0,95959.0,0.0003406]
[1739875839104,3.74214016,95960.0,95959.0,0.0003406]
[1739875839320,3.34801916,95960.0,95959.0,0.0003406]
[1739875839546,3.32007916,95960.0,95959.0,0.0003406]
[1739875840094,3.32307916,95960.0,95959.0,0.0003406]
[1739875840499,3.31607916,95960.0,95959.0,0.0003406]
[1739875840717,3.32307916,95960.0,95959.0,0.0003406]
[1739875841132,1.45546416,95960.0,95959.0,0.0003406]
[1739875841347,1.31769016,95960.0,95959.0,0.0003406]
[1739875842618,1.30135864,95960.0,95959.0,0.0003406]
[1739875844133,1.40386229,95960.0,95959.0,0.0003406]
[1739875845107,1.29435864,95960.0,95959.0,0.0003406]
[1739875845310,0.55962864,95960.0,95959.0,0.0003406]
[1739875845516,2.88345264,95960.0,95959.0,0.0003406]
[1739875845728,2.21938985,95960.0,95959.0,0.0003406]
[1739875846009,1.88662585,95960.0,95959.0,0.0003406]
[1739875846152,0.91489385,95960.0,95959.0,0.0003406]
[1739875846350,0.85001185,95960.0,95959.0,0.0003406]
[1739875846759,0.84701185,95960.0,95959.0,0.0003406]
[1739875846955,0.85701185,95960.0,95959.0,0.0003406]
[1739875847367,0.84701185,95960.0,95959.0,0.0003406]
[1739875847571,0.85001185,95960.0,95959.0,0.0003406]
[1739875847798,0.85401185,95960.0,95959.0,0.0003406]
[1739875852719,0.83767964,95960.0,95959.0,0.0003406]
[1739875853444,1.10398764,95960.0,95959.0,0.0003406]
[1739875855890,1.12032001,95960.0,95959.0,0.0003406]
[1739875856500,1.22282366,95960.0,95959.0,0.0003406]
[1739875856965,1.12032001,95960.0,95959.0,0.0003406]
[1739875859349,1.12049031,95960.0,95959.0,0.0003406]
[1739875860818,1.05148931,95960.0,95959.0,0.0003406]
[1739875862603,0.85418231,95960.0,95959.0,0.0003406]
[1739875862785,0.83784994,95960.0,95959.0,0.0003406]
[1739875864282,0.83784994,95960.0,95959.0,0.0502406]
[1739875865506,2.41198294,95960.0,95959.0,0.0502406]
[1739875865702,0.34999481,95960.0,95959.0,0.0502406]
[1739875866087,2.42711781,95960.0,95959.0,0.0502406]
[1739875869265,0.04423326,95960.0,95959.0,0.1284406]
[1739875869623,0.04423326,95960.0,95959.0,0.14135278]
[1739875869824,0.04423326,95960.0,95959.0,0.1284406]
[1739875872751,0.02790139,95960.0,95959.0,0.1284406]
[1739875874719,0.18421639,95960.0,95959.0,0.1284406]
[1739875874918,0.02790139,95960.0,95959.0,0.1284406]
[1739875875861,0.04423225,95960.0,95959.0,0.1284406]
[1739875876079,0.04423225,95960.0,95959.0,0.14135278]
[1739875876899,0.03723225,95960.0,95959.0,0.14135278]
[1739875877098,0.03923225,95960.0,95959.0,0.1284406]
[1739875877346,0.04023225,95960.0,95959.0,0.1284406]
[1739875877953,0.19654725,95960.0,95959.0,0.1284406]
[1739875878182,0.04023225,95960.0,95959.0,0.1284406]
[1739875878394,0.19654725,95960.0,95959.0,0.0003406]
[1739875879089,1.02629725,95960.0,95959.0,0.0003406]
[1739875879291,1.35253425,95960.0,95959.0,0.0003406]
[1739875879501,1.10636738,95960.0,95959.0,0.0003406]
[1739875879742,0.156315,95960.0,95959.0,0.0003406]
[1739875879951,1.00126615,95960.0,95959.0,0.0003406]
[1739875880156,1.00259715,95960.0,95959.0,0.0003406]
[1739875880803,0.95445115,95960.0,95959.0,0.0003406]
[1739875882363,0.95462145,95960.0,95959.0,0.0003406]
[1739875882988,2.32588445,95960.0,95959.0,0.0003406]
[1739875883193,3.93770645,95960.0,95959.0,0.0003406]
[1739875883402,3.70411345,95960.0,95959.0,0.0003406]
[1739875884634,3.8066171,95960.0,95959.0,0.0003406]
[1739875884841,3.70411345,95960.0,95959.0,0.0003406]
[1739875885015,3.05444645,95960.0,95959.0,0.0003406]
[1739875885216,2.94507845,95960.0,95959.0,0.0003406]
[1739875885416,2.73706145,95960.0,95959.0,0.0003406]
[1739875885823,2.75939376,95960.0,95959.0,0.0003406]
[1739875886211,2.75339376,95960.0,95959.0,0.0003406]
[1739875886637,2.75539376,95960.0,95959.0,0.0003406]
[1739875886836,2.80003172,95960.0,95959.0,0.0003406]
[1739875887038,2.79603172,95960.0,95959.0,0.0003406]
[1739875887479,2.79703172,95960.0,95959.0,0.0003406]
[1739875887625,2.79603172,95960.0,95959.0,0.0003406]
[1739875888369,2.75539376,95960.0,95959.0,0.0003406]
[1739875888544,2.75739376,95960.0,95959.0,0.0003406]
[1739875888751,2.76339376,95960.0,95959.0,0.0003406]
[1739875889343,2.75739376,95960.0,95959.0,0.0003406]
[1739875889542,2.76339376,95960.0,95959.0,0.0003406]
[1739875889737,2.75939376,95960.0,95959.0,0.0003406]
[1739875890215,2.76339376,95960.0,95959.0,0.0003406]
[1739875892824,2.47976295,95960.0,95959.0,0.0003406]
[1739875893023,2.577665,95960.0,95959.0,0.0003406]
[1739875893873,2.573665,95960.0,95959.0,0.0003406]
[1739875894288,2.577665,95960.0,95959.0,0.0003406]
[1739875894553,2.573665,95960.0,95959.0,0.0003406]
[1739875894836,2.5678353,95960.0,95959.0,0.0003406]
[1739875895035,2.7278353,95960.0,95959.0,0.0003406]
[1739875895391,2.7218353,95960.0,95959.0,0.0003406]
[1739875895821,2.7268353,95960.0,95959.0,0.0003406]
[1739875895980,2.7458776,95960.0,95959.0,0.0003406]
[1739875897037,2.76221005,95960.0,95959.0,0.0003406]
[1739875898507,2.8647137,95960.0,95959.0,0.0003406]
[1739875903002,2.84838125,95960.0,95959.0,0.0003406]
[1739875903211,2.7458776,95960.0,95959.0,0.0003406]
[1739875904345,2.92698125,95960.0,95959.0,0.0003406]
[1739875904749,2.84838125,95960.0,95959.0,0.0003406]
[1739875905232,2.84338125,95960.0,95959.0,0.0003406]
[1739875905651,0.60752025,95960.0,95959.0,0.0003406]
[1739875905850,0.5405349,95960.0,95959.0,0.0003406]
[1739875906250,4.95313082,95960.0,95959.0,0.0003406]
[1739875906964,4.95713082,95960.0,95959.0,0.0003406]
[1739875908177,0.15,95955.0,95930.0,0.0818]
[1739875908332,0.156368,95927.0,95926.0,0.0462]
[1739875908718,3.342638,95927.0,95926.0,0.0462]
[1739875908916,3.17801868,95927.0,95926.0,0.0462]
[1739875909124,0.156378,95921.0,95920.0,0.0818]
[1739875909988,0.156378,95921.0,95920.0,0.08224067]
[1739875912130,0.69321,95921.0,95920.0,0.00044067]
[1739875912357,1.859578,95921.0,95920.0,0.00044067]
[1739875912628,2.0684,95921.0,95920.0,0.00044067]
[1739875912829,2.221999,95921.0,95920.0,0.00044067]
[1739875913031,1.91458,95921.0,95920.0,0.00044067]
[1739875913169,1.83079026,95921.0,95920.0,0.00044067]
[1739875913583,1.764683,95921.0,95920.0,0.00044067]
[1739875913779,1.71615,95921.0,95920.0,0.00044067]
[1739875914028,1.590915,95921.0,95920.0,0.00044067]
[1739875914576,3.161817,95921.0,95920.0,0.00044067]
[1739875914780,3.666602,95921.0,95920.0,0.00044067]
[1739875914955,3.54459165,95921.0,95920.0,0.00044067]
[1739875915539,3.54659165,95921.0,95920.0,0.00044067]
[1739875916612,3.54759165,95921.0,95920.0,0.00044067]
[1739875916828,3.54459165,95921.0,95920.0,0.00044067]
[1739875917058,2.587105,95921.0,95920.0,0.00044067]
[1739875917278,2.60844232,95921.0,95920.0,0.00044067]
[1739875917651,2.56186932,95921.0,95920.0,0.00044067]
[1739875917870,2.51987832,95921.0,95920.0,0.00044067]
[1739875918229,2.51987832,95921.0,95920.0,0.00078127]
[1739875918696,2.56507931,95921.0,95920.0,0.00078127]
[1739875919034,2.51958483,95921.0,95920.0,0.00078127]
[1739875919791,2.54036108,95921.0,95920.0,0.00078127]
[1739875920512,2.05797483,95921.0,95920.0,0.00078127]
[1739875921423,2.05497483,95921.0,95920.0,0.00078127]
[1739875921845,2.05797483,95921.0,95920.0,0.00078127]
[1739875922836,2.04163751,95921.0,95920.0,0.00078127]
[1739875923040,2.03963751,95921.0,95920.0,0.00078127]
[1739875923245,2.04163751,95921.0,95920.0,0.00078127]
[1739875923445,2.03963751,95921.0,95920.0,0.00078127]
[1739875923652,2.03663751,95921.0,95920.0,0.00078127]
[1739875923851,2.03763751,95921.0,95920.0,0.00078127]
[1739875924486,2.03663751,95921.0,95920.0,0.00078127]
[1739875925828,2.05297478,95921.0,95920.0,0.00078127]
[1739875929532,2.15547843,95921.0,95920.0,0.00078127]
[1739875929740,0.27492543,95921.0,95920.0,0.00078127]
[1739875929945,3.90514943,95921.0,95920.0,0.00078127]
[1739875930364,1.00647878,95921.0,95920.0,0.00078127]
[1739875930587,2.41428278,95921.0,95920.0,0.00078127]
[1739875930792,2.93252978,95921.0,95920.0,0.00078127]
[1739875930968,2.93458578,95921.0,95920.0,0.00078127]
[1739875931171,2.92975608,95921.0,95920.0,0.00078127]
[1739875931377,2.93075608,95921.0,95920.0,0.00078127]
[1739875931579,2.93175608,95921.0,95920.0,0.00078127]
[1739875931780,2.93075608,95921.0,95920.0,0.00078127]
[1739875931983,2.92975608,95921.0,95920.0,0.00078127]
[1739875932391,2.93075608,95921.0,95920.0,0.00078127]
[1739875932745,2.91441881,95921.0,95920.0,0.00078127]
[1739875934033,2.91341881,95921.0,95920.0,0.00078127]
[1739875934428,2.91441881,95921.0,95920.0,0.00078127]
[1739875936300,3.01692246,95921.0,95920.0,0.00078127]
[1739875936523,2.91441881,95921.0,95920.0,0.00078127]
[1739875937149,2.41445306,95921.0,95920.0,0.00078127]
[1739875937800,2.17730855,95921.0,95920.0,0.00078127]
[1739875937993,0.63669655,95921.0,95920.0,0.00078127]
[1739875942707,0.6203593,95921.0,95920.0,0.00078127]
[1739875943751,0.1565483,95921.0,95920.0,0.00078127]
[1739875944326,2.3173493,95921.0,95920.0,0.00078127]
[1739875944959,2.203175,95921.0,95920.0,0.00078127]
[1739875945770,2.21951221,95921.0,95920.0,0.00078127]
[1739875945943,4.41771621,95921.0,95920.0,0.00078127]
[1739875946144,3.88577121,95921.0,95920.0,0.00078127]
[1739875947412,3.88777121,95921.0,95920.0,0.00078127]
[1739875947836,3.88877121,95921.0,95920.0,0.00078127]
[1739875948154,3.72949521,95921.0,95920.0,0.00078127]
[1739875948285,3.72849521,95921.0,95920.0,0.00078127]
[1739875948884,3.46814721,95921.0,95920.0,0.00078127]
[1739875949105,0.02133721,95921.0,95920.0,0.12398127]
[1739875949320,0.17771521,95921.0,95920.0,0.13641346]
[1739875949731,0.01933721,95921.0,95920.0,0.13641346]
[1739875950034,0.02133721,95921.0,95920.0,0.13641346]
[1739875950278,0.01933721,95921.0,95920.0,0.13641346]
[1739875950484,0.01633721,95921.0,95920.0,0.13641346]
[1739875950867,0.01933721,95921.0,95920.0,0.13641346]
[1739875951201,0.17571521,95921.0,95920.0,0.13641346]
[1739875951398,0.17271521,95921.0,95920.0,0.13641346]
[1739875951537,0.01633721,95921.0,95920.0,0.13641346]
[1739875951738,0.01633721,95921.0,95920.0,0.23891711]
[1739875952787,0.156369,95927.0,95921.0,0.0828]
[1739875953049,0.156369,95927.0,95922.0,0.02447577]
[1739875953743,0.208481,95932.0,95924.0,0.1229]
[1739875953892,0.0011703,95927.0,95925.0,0.10250365]
[1739875954290,0.0001703,95927.0,95926.0,0.00104235]
[1739875954487,0.0001703,95927.0,95926.0,0.10354601]
[1739875954743,0.0011703,95927.0,95926.0,0.12995951]
[1739875954952,0.1575383,95927.0,95926.0,0.12891717]
[1739875955155,1.4065483,95927.0,95926.0,0.10250365]
[1739875955387,1.3955383,95927.0,95926.0,0.10250365]
[1739875955567,1.3965383,95927.0,95926.0,0.10250365]
[1739875956003,1.41287427,95927.0,95926.0,0.10250365]
[1739875956222,1.25650627,95927.0,95926.0,0.10250365]
[1739875956677,0.01750627,95927.0,95926.0,0.12636536]
[1739875957527,0.17387427,95927.0,95926.0,0.12636536]
[1739875957735,0.01750627,95927.0,95926.0,0.12636536]
[1739875958173,0.17387427,95927.0,95926.0,0.12636536]
[1739875959020,0.17387427,95927.0,95926.0,0.10250365]
[1739875959234,0.01750627,95927.0,95926.0,0.10250365]
[1739875959438,0.17387427,95927.0,95926.0,0.10250365]
[1739875960824,0.01750627,95927.0,95926.0,0.10250365]
[1739875961827,0.17387427,95927.0,95926.0,0.10250365]
[1739875962064,0.01750627,95927.0,95926.0,0.10250365]
[1739875962673,0.0011703,95927.0,95926.0,0.15921536]
[1739875963109,0.0011703,95927.0,95926.0,0.2355577]
[1739875963285,0.0011703,95927.0,95926.0,0.23451536]
[1739875963657,0.0011703,95927.0,95926.0,0.43748536]
[1739875963869,0.0011703,95927.0,95926.0,0.28111536]
[1739875965182,0.0011703,95927.0,95926.0,0.43748536]
[1739875965390,0.0011703,95927.0,95926.0,0.28111536]
[1739875967047,0.0011703,95927.0,95926.0,0.22440365]
[1739875968515,0.0011703,95927.0,95926.0,0.55290365]
[1739875978582,0.0011703,95927.0,95926.0,0.70927365]
[1739875978818,0.0011703,95927.0,95926.0,0.55290365]
[1739875979218,0.0001703,95927.0,95926.0,0.55290365]
[1739875979428,0.0001703,95927.0,95926.0,0.63039962]
[1739875979632,0.0011703,95927.0,95926.0,0.63039962]
[1739875980247,0.0001703,95927.0,95926.0,0.63039962]
[1739875981041,0.0011703,95927.0,95926.0,0.63039962]
[1739875981249,0.0001703,95927.0,95926.0,0.63039962]
[1739875981622,0.0011703,95927.0,95926.0,0.63039962]
[1739875982268,0.0021703,95927.0,95926.0,0.63039962]
[1739875983867,0.0021703,95927.0,95926.0,0.78676962]
[1739875985743,0.0021703,95927.0,95926.0,0.79459518]
[1739875986152,0.0021703,95927.0,95926.0,0.80238635]
[1739875987591,0.0021703,95927.0,95926.0,0.64601635]
[1739875987748,0.0021703,95927.0,95926.0,0.80238635]
[1739875989007,0.29365408,95940.0,95926.0,0.80238635]
[1739875989217,0.208467,95938.0,95927.0,0.30192164]
[1739875989423,0.156352,95937.0,95927.0,0.30192164]
[1739875989572,0.156351,95938.0,95928.0,0.156367]
[1739875989754,0.24153808,95940.0,95929.0,0.10354595]
[1739875989960,0.08518908,95940.0,95931.0,0.156362]
[1739875990172,0.08005678,95940.0,95932.0,0.10354594]
[1739875990628,0.156352,95938.0,95932.0,0.10250365]
[1739875990828,0.156352,95938.0,95933.0,0.07715351]
[1739875991063,0.156349,95939.0,95933.0,0.17965716]
[1739875991911,0.08005678,95940.0,95933.0,0.17965716]
[1739875992125,0.208466,95939.0,95933.0,0.10250365]
[1739875992327,0.156352,95937.0,95933.0,0.10250365]
[1739875993460,0.156352,95937.0,95933.0,0.10350365]
[1739875993660,0.156352,95937.0,95933.0,0.10250365]
[1739875994038,0.08005678,95940.0,95933.0,0.10350365]
[1739875994250,0.08005678,95940.0,95933.0,0.17587776]
[1739875994781,0.08005678,95940.0,95933.0,0.17487776]
[1739875994926,0.23640478,95940.0,95933.0,0.17487776]
[1739875995130,0.15635,95939.0,95933.0,0.17587776]
[1739875995357,0.08005678,95940.0,95933.0,0.17587776]
[1739875995555,0.08005678,95940.0,95934.0,0.01893522]
[1739875995797,0.156354,95936.0,95934.0,0.01893522]
[1739875996022,0.156353,95937.0,95934.0,0.01893522]
[1739875996223,0.36482,95938.0,95934.0,0.01893522]
[1739875996426,0.156352,95938.0,95933.0,0.17587776]
[1739875996947,0.156352,95937.0,95933.0,0.17587776]
[1739875997158,0.00514986,95941.0,95933.0,0.17487776]
[1739875997332,0.643062,95940.0,95933.0,0.17692003]
[1739875997558,0.156349,95939.0,95933.0,0.17487776]
[1739875997755,0.00514986,95941.0,95933.0,0.17487776]
[1739875997967,0.156352,95937.0,95934.0,0.03447202]
[1739875998122,0.00514986,95941.0,95934.0,0.03447202]
[1739875998319,0.156351,95938.0,95934.0,0.03447202]
[1739875998541,0.15635,95938.0,95933.0,0.10350365]
[1739875998741,0.208463,95940.0,95933.0,0.10250365]
[1739875998985,0.156349,95939.0,95933.0,0.10350365]
[1739875999743,0.156353,95937.0,95933.0,0.10350365]
[1739876000362,0.156351,95938.0,95933.0,0.10250365]
[1739876000646,0.156348,95940.0,95934.0,0.001]
[1739876000829,1.869787,95940.0,95935.0,0.0104546]
[1739876001074,0.156348,95940.0,95935.0,0.0104546]
[1739876001497,0.156349,95939.0,95935.0,0.0104546]
[1739876001694,0.208466,95939.0,95934.0,0.001]
[1739876002033,0.15635,95938.0,95933.0,0.10250365]
[1739876002209,0.208466,95939.0,95933.0,0.10250365]
[1739876002391,0.156353,95937.0,95933.0,0.10250365]
[1739876002705,0.00514986,95941.0,95933.0,0.10250365]
[1739876002883,1.713463,95940.0,95933.0,0.17353494]
[1739876003091,0.156354,95937.0,95933.0,0.10284425]
[1739876003405,0.208463,95940.0,95935.0,0.001]
[1739876003609,0.156354,95936.0,95933.0,0.10284425]
[1739876003804,0.2086333,95940.0,95933.0,0.10284425]
[1739876004005,0.156356,95935.0,95933.0,0.10284425]
[1739876004417,0.156356,95935.0,95933.0,0.10384425]
[1739876004877,0.208471,95937.0,95933.0,0.10284425]
[1739876005085,0.2086343,95940.0,95933.0,0.10384425]
[1739876005287,1.735876,95939.0,95933.0,0.10384425]
[1739876005408,0.156354,95936.0,95933.0,0.10384425]
[1739876006476,0.2086343,95940.0,95933.0,0.10284425]
[1739876006785,0.156356,95935.0,95933.0,0.10384425]
[1739876006941,0.156354,95936.0,95933.0,0.10284425]
[1739876007149,0.156354,95936.0,95933.0,0.10384425]
[1739876007578,0.156354,95936.0,95933.0,0.10284425]
[1739876007807,0.156354,95936.0,95933.0,0.10384425]
[1739876008099,0.156355,95935.0,95933.0,0.10384425]
[1739876008712,0.156354,95936.0,95933.0,0.10284425]
[1739876009956,0.156354,95936.0,95933.0,0.10384425]
[1739876010601,0.156357,95935.0,95933.0,0.10384425]
[1739876011137,0.156356,95935.0,95933.0,0.10384425]
[1739876011387,0.208469,95938.0,95933.0,0.10384425]
[1739876011619,0.0001703,95940.0,95933.0,0.10384425]
[1739876011911,0.156356,95935.0,95933.0,0.15826868]
[1739876013002,0.156356,95935.0,95933.0,0.15926868]
[1739876014635,0.156356,95935.0,95933.0,0.10384425]
[1739876018171,0.0001702,95938.0,95933.0,0.10384425]
[1739876018698,0.156352,95937.0,95933.0,0.10384425]
[1739876019236,0.0001703,95940.0,95933.0,0.10384425]
[1739876019448,0.156353,95937.0,95933.0,0.10284425]
[1739876019782,0.156353,95937.0,95933.0,0.10384425]
[1739876020007,0.156353,95937.0,95933.0,0.10284425]
[1739876020173,0.208467,95939.0,95933.0,0.10384425]
[1739876020377,0.156352,95938.0,95933.0,0.1593729]
[1739876021203,0.156352,95938.0,95933.0,0.1583729]
[1739876021420,0.156352,95938.0,95933.0,0.1593729]
[1739876021817,0.156353,95937.0,95933.0,0.1593729]
[1739876022429,0.156353,95937.0,95933.0,0.10384425]
[1739876023340,0.156353,95937.0,95933.0,0.10284425]
[1739876023877,0.156351,95938.0,95933.0,0.10284425]
[1739876024074,0.15364601,95938.0,95933.0,0.10384425]
[1739876024598,0.15364601,95938.0,95933.0,0.10284425]
[1739876024779,0.15364601,95938.0,95933.0,0.10384425]
[1739876024987,0.15364601,95938.0,95933.0,0.10284425]
[1739876025244,0.15364601,95938.0,95933.0,0.10384425]
[1739876025380,0.15364601,95938.0,95933.0,0.17480567]
[1739876027545,0.208467,95939.0,95933.0,0.10384425]
[1739876027686,0.156351,95938.0,95933.0,0.10384425]
[1739876028510,0.156353,95937.0,95933.0,0.10384425]
[1739876028722,0.156353,95937.0,95933.0,0.0013406]
[1739876028723,0.156357,95934.0,95933.0,0.0013406]
[1739876028944,0.156357,95934.0,95921.0,0.0003406]
[1739876028945,0.156377,95922.0,95921.0,0.0003406]
[1739876029145,3.195213,95922.0,95921.0,0.0003406]
[1739876029407,3.739561,95922.0,95921.0,0.0003406]
[1739876029527,3.767801,95922.0,95921.0,0.0003406]
[1739876029871,2.028777,95922.0,95921.0,0.0003406]
[1739876030076,0.619481,95922.0,95921.0,0.0003406]
[1739876030307,0.520279,95922.0,95921.0,0.0003406]
[1739876030736,0.475324,95922.0,95921.0,0.0013406]
[1739876030938,0.19884,95922.0,95921.0,0.0013406]
[1739876031143,0.697708,95924.0,95921.0,0.0013406]
[1739876031345,0.612645,95923.0,95921.0,0.0013406]
[1739876031554,0.624434,95922.0,95921.0,0.0013406]
[1739876031733,0.156377,95922.0,95921.0,0.0013406]
[1739876032034,2.020811,95922.0,95921.0,0.0013406]
[1739876032918,2.020811,95922.0,95921.0,0.0003406]
[1739876035973,1.559011,95922.0,95921.0,0.0003406]
[1739876042542,0.156377,95922.0,95921.0,0.0003406]
[1739876042757,1.871771,95922.0,95921.0,0.0003406]
[1739876042962,1.929318,95922.0,95921.0,0.0003406]
[1739876043189,1.896116,95922.0,95921.0,0.0003406]
[1739876046517,1.91245277,95922.0,95921.0,0.0003406]
[1739876050587,1.86189777,95922.0,95921.0,0.0003406]
[1739876052708,1.845561,95922.0,95921.0,0.0003406]
[1739876053484,1.787916,95922.0,95921.0,0.0003406]
[1739876055254,0.157377,95922.0,95921.0,0.0003406]
[1739876055618,1.845798,95922.0,95921.0,0.0003406]
[1739876055831,1.86213476,95922.0,95921.0,0.0003406]
[1739876058733,0.99246676,95922.0,95921.0,0.0003406]
[1739876058923,0.93581576,95922.0,95921.0,0.0003406]
[1739876061461,0.764912,95922.0,95921.0,0.0003406]
[1739876061759,0.762102,95922.0,95921.0,0.0003406]
[1739876061934,0.156377,95922.0,95921.0,0.0003406]
[1739876062113,2.203174,95922.0,95921.0,0.0003406]
[1739876065026,2.21951076,95922.0,95921.0,0.0003406]
[1739876065237,2.22051076,95922.0,95921.0,0.0003406]
[1739876065857,2.21951076,95922.0,95921.0,0.0003406]
[1739876066238,2.22051076,95922.0,95921.0,0.0003406]
[1739876068425,0.17371376,95922.0,95921.0,0.0003406]
[1739876068624,2.22051076,95922.0,95921.0,0.0003406]
[1739876072739,2.204174,95922.0,95921.0,0.0003406]
[1739876075712,2.22051078,95922.0,95921.0,0.0003406]
[1739876081323,0.17371378,95922.0,95921.0,0.0003406]
[1739876081724,2.22051078,95922.0,95921.0,0.0003406]
[1739876082991,2.204174,95922.0,95921.0,0.0003406]
[1739876085673,1.92504752,95922.0,95921.0,0.0003406]
[1739876085812,0.01650707,95922.0,95921.0,0.0003406]
[1739876086021,1.94155507,95922.0,95921.0,0.0003406]
[1739876086960,2.09793207,95922.0,95921.0,0.0003406]
[1739876090956,2.08872299,95922.0,95921.0,0.0003406]
[1739876094095,2.0815953,95922.0,95921.0,0.0003406]
[1739876097441,2.09793206,95922.0,95921.0,0.0003406]
[1739876100984,2.09893206,95922.0,95921.0,0.0003406]
[1739876101568,2.09793206,95922.0,95921.0,0.0003406]
[1739876101763,2.09893206,95922.0,95921.0,0.0003406]
[1739876102699,2.0825953,95922.0,95921.0,0.0003406]
[1739876104910,1.8468943,95922.0,95921.0,0.0003406]
[1739876105121,1.7051753,95922.0,95921.0,0.0003406]
[1739876105884,1.72151205,95922.0,95921.0,0.0003406]
[1739876106488,1.72051205,95922.0,95921.0,0.0003406]
[1739876106688,0.17288405,95922.0,95921.0,0.0003406]
[1739876106912,1.77780505,95922.0,95921.0,0.0003406]
[1739876107109,1.77467105,95922.0,95921.0,0.0003406]
[1739876108654,1.77467105,95922.0,95921.0,0.0033406]
[1739876112702,1.7583343,95922.0,95921.0,0.0033406]
[1739876115777,1.6489523,95922.0,95921.0,0.0033406]
[1739876115975,1.66528867,95922.0,95921.0,0.0033406]
[1739876117799,1.66373146,95922.0,95921.0,0.0033406]
[1739876119478,0.17132646,95922.0,95921.0,0.0033406]
[1739876119640,3.20212946,95922.0,95921.0,0.0033406]
[1739876120754,3.06823046,95922.0,95921.0,0.0033406]
[1739876121530,3.06840076,95922.0,95921.0,0.0033406]
[1739876122561,3.05206439,95922.0,95921.0,0.0033406]
[1739876125990,3.06840122,95922.0,95921.0,0.0033406]
[1739876131370,2.78980213,95922.0,95921.0,0.0033406]
[1739876131572,2.66372913,95922.0,95921.0,0.0033406]
[1739876131787,2.62429213,95922.0,95921.0,0.0033406]
[1739876132106,2.59926013,95922.0,95921.0,0.0033406]
[1739876132354,2.54208213,95922.0,95921.0,0.0033406]
[1739876132556,2.69845913,95922.0,95921.0,0.0033406]
[1739876132731,2.6821223,95922.0,95921.0,0.0033406]
[1739876133198,1.1284033,95922.0,95921.0,0.0033406]
[1739876133613,3.1860443,95922.0,95921.0,0.00140521]
[1739876133819,0.156378,95921.0,95920.0,0.00019427]
[1739876134047,1.75848,95921.0,95920.0,0.00019427]
[1739876134154,1.724214,95921.0,95920.0,0.00019427]
[1739876134371,1.724214,95921.0,95920.0,0.00049306]
[1739876135874,1.74055092,95921.0,95920.0,0.00049306]
[1739876142765,1.724214,95921.0,95920.0,0.00049306]
[1739876149086,1.725214,95921.0,95920.0,0.00049306]
[1739876149390,3.23221265,95921.0,95920.0,0.00049306]
[1739876149524,2.53627365,95921.0,95920.0,0.00049306]
[1739876150823,2.53827365,95921.0,95920.0,0.00049306]
[1739876151655,0.97043765,95921.0,95920.0,0.00049306]
[1739876152090,2.77187665,95921.0,95920.0,0.00049306]
[1739876152709,2.669373,95921.0,95920.0,0.00049306]
[1739876152943,2.819373,95921.0,95920.0,0.00049306]
[1739876153145,2.895873,95921.0,95920.0,0.00049306]
[1739876154092,2.894873,95921.0,95920.0,0.00049306]
[1739876154224,2.900873,95921.0,95920.0,0.00049306]
[1739876154428,2.9274746,95921.0,95920.0,0.00049306]
[1739876154649,3.02997825,95921.0,95920.0,0.00049306]
[1739876155742,3.04631771,95921.0,95920.0,0.00049306]
[1739876155950,3.04648801,95921.0,95920.0,0.00049306]
[1739876156193,3.04648801,95921.0,95920.0,0.0004477]
[1739876156615,2.81303379,95921.0,95920.0,0.0004477]
[1739876157412,2.96941179,95921.0,95920.0,0.0004477]
[1739876157613,2.86690814,95921.0,95920.0,0.0004477]
[1739876159087,2.79040814,95921.0,95920.0,0.0004477]
[1739876159407,2.79040814,95921.0,95920.0,0.00019427]
[1739876159617,2.76980654,95921.0,95920.0,0.00019427]
[1739876162682,2.75346708,95921.0,95920.0,0.00019427]
[1739876162858,2.85597073,95921.0,95920.0,0.00019427]
[1739876163822,1.05453173,95921.0,95920.0,0.00019427]
[1739876164031,2.85597073,95921.0,95920.0,0.00019427]
[1739876164445,2.75346708,95921.0,95920.0,0.00019427]
[1739876165293,1.7259353,95921.0,95920.0,0.00019427]
[1739876165494,1.5126193,95921.0,95920.0,0.00019427]
[1739876165857,1.30991532,95921.0,95920.0,0.00019427]
[1739876166054,0.47636232,95921.0,95920.0,0.04549427]
[1739876166189,1.52934832,95921.0,95920.0,0.12339427]
[1739876166833,1.52334832,95921.0,95920.0,0.12339427]
[1739876167850,1.52334832,95921.0,95920.0,0.13576776]
[1739876167851,1.2774524,95921.0,95920.0,0.13576776]
[1739876168018,0.113426,95921.0,95920.0,0.13576776]
[1739876168219,0.156378,95921.0,95920.0,0.13576776]
[1739876169863,0.0001703,95922.0,95920.0,0.13576776]
[1739876170060,0.156378,95921.0,95920.0,0.13576776]
[1739876171294,0.156378,95921.0,95920.0,0.13776776]
[1739876171483,0.0001703,95922.0,95920.0,0.13776776]
[1739876171795,0.156378,95921.0,95920.0,0.13776776]
[1739876172864,0.156378,95921.0,95920.0,0.14176776]
[1739876173034,0.156378,95921.0,95920.0,0.12939427]
[1739876175861,0.156378,95921.0,95920.0,0.12539427]
[1739876176061,0.156378,95921.0,95920.0,0.12339427]
[1739876176393,0.156378,95921.0,95920.0,0.12539427]
[1739876176591,0.156378,95921.0,95920.0,0.12639427]
[1739876178863,0.01633802,95924.0,95920.0,0.12639427]
[1739876179065,0.1565483,95921.0,95920.0,0.12639427]
[1739876179877,0.1565483,95921.0,95920.0,0.12339427]
[1739876180727,0.1565483,95921.0,95920.0,0.12439427]
[1739876181156,0.1565483,95921.0,95920.0,0.12539427]
[1739876182250,0.1565483,95921.0,95920.0,0.12439427]
[1739876182687,0.1565483,95921.0,95920.0,0.12639427]
[1739876188892,0.1565483,95921.0,95920.0,0.04849427]
[1739876189060,3.0569243,95921.0,95920.0,0.04849427]
[1739876189263,3.0569243,95921.0,95920.0,0.00319427]
[1739876190429,3.0569243,95921.0,95920.0,0.00019427]
[1739876190637,3.0579243,95921.0,95920.0,0.00019427]
[1739876191007,2.4037533,95921.0,95920.0,0.00019427]
[1739876191210,0.2630993,95921.0,95920.0,0.00119427]
[1739876191415,0.1575483,95921.0,95920.0,0.00119427]
[1739876191699,1.8806553,95921.0,95920.0,0.00019427]
[1739876191921,1.8846393,95921.0,95920.0,0.00019427]
[1739876192521,1.98814295,95921.0,95920.0,0.00019427]
[1739876192727,1.8846393,95921.0,95920.0,0.00019427]
[1739876192924,1.8846393,95921.0,95920.0,0.00119427]